Cogmind - Beta 15 @@@ ROGUE MODE // 2025.07.20 @ 10:04:07 Player: Dadrick Result: Destroyed by H-66 Slayer with Gauss Rifle Performance ------------- Evolutions (4) 2000 Regions Visited (7) 1400 Robots Destroyed (67) 335 Value Destroyed (1842) 1842 Prototype IDs (22) 440 Alien Tech Used (0) 0 Bonus (976) 976 TOTAL SCORE: 6993 Bonus ------- Follower Combat Kills 390 Registered with UFD 300 Met Optimus in HQ 500 Friendly Fire -214 Cogmind --------- Core Integrity 0/850 Matter 300/300 Energy 210/210 System Corruption 7% Temperature Cool (0) Movement Walking (120) Location -6/Extension Parts ------- > --- POWER (2) -------- Light Angular Momentum Engine Light Fission Core > --- PROPULSION (4) --- Carbon-fiber Leg Flexi-carbon Leg Flexi-carbon Leg Myomer Leg > --- UTILITY (6) ------ Improved Heat Sink High-capacity Storage Unit Improved Terrain Scanner Surveybot 17 Chip Seismic Detector Focal Shield > --- WEAPON (3) ------- Gauss Rifle Gauss Rifle Datajack > --- INVENTORY (20) --- Improved Deuterium Engine Carbon-fiber Leg Carbon-fiber Leg Carbon-fiber Leg Flexi-carbon Leg Scrap Suit Improved Heat Sink Structural Scanner Improved Terrain Scanner Gun Armor Improved Hacking Suite Heavy Laser Heavy Laser Gatling Laser Heavy Assault Rifle Grenade Launcher Smartbomb Launcher Great Axe Peak State ------------ > --- POWER ------------ Light Nuclear Core Light Angular Momentum Engine > --- PROPULSION ------- Carbon-fiber Leg Flexi-carbon Leg Flexi-carbon Leg Myomer Leg > --- UTILITY ---------- Improved Heat Sink High-capacity Storage Unit Improved Terrain Scanner Surveybot 17 Chip Phase Shifter Focal Shield > --- WEAPON ----------- Gauss Rifle Gauss Rifle Great Axe > --- INVENTORY -------- Light Angular Momentum Engine Light Fission Core Carbon-fiber Leg Carbon-fiber Leg Carbon-fiber Leg Flexi-carbon Leg Scrap Suit Structural Scanner Improved Terrain Scanner Seismic Detector Gun Armor Improved Hacking Suite Heavy Laser Heavy Laser Heavy Assault Rifle Grenade Launcher Smartbomb Launcher Datajack [Rating: 71] Favorites ----------- Power Light Ion Engine Engine Light Ion Engine Power Core Micro Nuclear Core Propulsion Titanium Leg Treads Light Treads Leg Titanium Leg Wheel Wheel Utility High-capacity Storage Unit Device Improved Heat Sink Storage High-capacity Storage Unit Processor Surveybot 17 Chip Hackware Improved Hacking Suite Protection Hardened Light Armor Plating Weapon Light Assault Rifle Energy Gun Shock Rifle Ballistic Gun Light Assault Rifle Ballistic Cannon Light Cannon Launcher Grenade Launcher Special Weapon CPS Tube Impact Weapon Heavy Flail Slashing Weapon Great Axe Special Melee Weapon Datajack Build | -11 -10 -10 -10 -9 -9 -6 -6 ------- Run | Yrd Mat Min Sub Rec Scr Fac Ext Slots Evolved 8 | . . . . . . 8 . Power 1 | . . . . . . 1 . Propulsion 2 | . . . . . . 2 . Utility 4 | . . . . . . 4 . Weapon 1 | . . . . . . 1 . Parts Attached 97 | 8 6 1 9 2 5 40 26 Power 13 | 1 . . 2 1 1 4 4 Engine 9 | 1 . . 2 1 1 2 2 Core 4 | . . . . . . 2 2 Reactor . | . . . . . . . . Propulsion 29 | 2 . . 3 . 2 11 11 Treads 12 | 2 . . 1 . 2 4 3 Leg 13 | . . . 2 . . 4 7 Wheel 4 | . . . . . . 3 1 Hover . | . . . . . . . . Flight . | . . . . . . . . Utility 27 | 2 2 1 . 1 2 13 6 Device 15 | 1 . 1 . . . 8 5 Storage 3 | 1 1 . . . 1 . . Processor 1 | . . . . . . 1 . Hackware 2 | . . . . . . 2 . Protection 6 | . 1 . . 1 1 2 1 Artifact . | . . . . . . . . Weapon 28 | 3 4 . 4 . . 12 5 Energy Gun 8 | 2 . . . . . 6 . Energy Cannon . | . . . . . . . . Ballistic Gun 9 | 1 2 . . . . 3 3 Ballistic Cannon 3 | . 1 . 2 . . . . Launcher 3 | . . . 1 . . 1 1 Special Weapon 2 | . 1 . . . . 1 . Impact Weapon 1 | . . . 1 . . . . Slashing Weapon 1 | . . . . . . 1 . Piercing Weapon . | . . . . . . . . Special Melee Weapon 1 | . . . . . . . 1 Unidentified Prototypes 1 | . . . . . . 1 . Parts Lost 47 | . 1 . 6 . . 21 19 Power 8 | . . . 2 . . 2 4 Propulsion 17 | . . . 2 . . 9 6 Utility 10 | . 1 . . . . 3 6 Weapon 12 | . . . 2 . . 7 3 Highest Loss Streak 14 | . 1 . 3 . . 10 14 To Critical Strikes . | . . . . . . . . Average Backups 15 | 1 10 14 13 13 17 17 15 Power . | . 2 1 . . . 1 1 Propulsion 2 | . 1 3 2 1 3 1 2 Utility 6 | . 2 4 4 6 8 8 7 Weapon 4 | . 4 6 5 6 4 3 3 Tool/Special . | . . . . . . . . Unused Backups 35 | . 1 4 1 1 6 6 16 Power 3 | . . 1 . . . 1 1 Propulsion 6 | . . 2 . . . 1 3 Utility 14 | . . 1 . 1 3 2 7 Weapon 11 | . 1 . 1 . 3 2 4 Tool/Special 1 | . . . . . . . 1 Average Slot Usage (%) 93 | . 90 100 98 100 100 81 86 Engine 10 | . 14 14 13 14 14 3 4 Core 1 | . . . . . . 4 5 Treads 10 | . 28 28 20 . . 9 6 Leg 13 | . . . 7 28 28 8 11 Wheel 1 | . . . . . . 3 5 Device 5 | . 3 8 6 . . 8 15 Storage 11 | . 14 14 14 14 14 6 5 Hackware 2 | . . . . . . 11 5 Protection 7 | . 1 5 7 14 14 2 . Energy Gun 3 | . 10 . . . . 9 7 Ballistic Gun 15 | . 17 28 3 25 28 8 5 Ballistic Cannon 3 | . . . 18 . . . . Impact Weapon 1 | . . . 5 2 . . . Peak Build Rating 71 | 7 8 9 16 17 18 55 71 Average Rating 22 | 5 7 8 10 15 16 42 50 On Entrance 15 | . 7 8 9 15 15 18 52 Naked Turns . | . . . . . . . . Heaviest Build 77 | 11 27 26 34 36 54 77 73 Greatest Support 80 | 40 40 40 40 34 34 80 80 Greatest Overweight (x) 7 | . . . 1 1 1 7 6 Average Overweight (x) . | . . . . . . 1 1 Largest Inventory Capacity 20 | 8 15 15 15 15 20 20 20 Average Capacity 17 | 7 14 15 15 15 19 20 19 Most Carried 20 | 4 15 15 15 15 20 20 20 Average Carried 16 | 1 10 14 13 14 18 18 17 Final Capacity 20 | 8 15 15 15 15 20 20 20 Final Carried 20 | 4 15 15 15 15 20 20 20 Class Distribution -------------------- 70% | Mutant 5% | Scavenger-Mutant 4% | Hacker-Tank 4% | Scavenger-Skirmisher 3% | Derelict-Tank 3% | Hacker-Gunner Dominant Class ---------------- Mutant | -10/Materials Mutant | -10/Mines Mutant | -10/Subcaves Mutant | -9/Recycling Mutant | -9/Scraptown Hacker-Tank | -6/Factory Scavenger-Skirmisher | -6/Extension Resources | -11 -10 -10 -10 -9 -9 -6 -6 ----------- Run | Yrd Mat Min Sub Rec Scr Fac Ext Matter Collected 2771 | 218 181 26 464 276 70 632 904 Remotely 135 | . . . . . . . 135 Salvage Created 2671 | 103 429 . 129 545 . 737 728 Parts 136 | 5 34 . 18 16 . 39 24 Haulers Intercepted 1 | . 1 . . . . . . Recyclers Shooed 9 | . 2 . . 3 . 3 1 Parts Field Recycled . | . . . . . . . . Retrieved Matter . | . . . . . . . . Parts Self-Destructed 11 | . . . 11 . . . . Prevented . | . . . . . . . . Kills | -11 -10 -10 -10 -9 -9 -6 -6 ------- Run | Yrd Mat Min Sub Rec Scr Fac Ext Combat Hostiles Destroyed 41 | . 8 . 9 1 . 13 10 Melee 2 | . . . . . . . 2 Guns 25 | . 8 . . 1 . 12 4 Cannons 9 | . . . 9 . . . . AOE 4 | . . . . . . . 4 Classes Destroyed 14 | 2 4 . 3 . . 3 2 Worker 2 | . . . . . . 2 . Tunneler 3 | 1 1 . . . . 1 . Hauler 1 | . 1 . . . . . . Recycler 12 | 1 2 . . 7 . 1 1 Operator 1 | . . . . . . . 1 Turret 2 | . . . 2 . . . . Watcher 4 | . 3 . . . . . 1 Swarmer 14 | . 6 . 4 . . 4 . Grunt 14 | . 2 . . . . 6 6 Duelist 1 | . . . . . . 1 . Sentry 6 | . . . 1 1 . 1 3 Hunter 1 | . . . . . . . 1 Programmer 1 | . . . . . . 1 . Subdweller 4 | . . . 4 . . . . Thug 1 | . . . . . . . 1 Best Kill Streak 4 | 1 3 . 4 4 . 4 2 Combat Bots Only 4 | . 3 . 4 1 . 4 2 Max Kills in Single Turn 2 | 1 2 . 1 1 . 1 1 Gunslinging 1 | . 1 . . . . . . Exploded 1 | . . . . . . . 1 Melee 1 | . . . . . . . 1 Uniques/NPCs Destroyed . | . . . . . . . . Combat | -11 -10 -10 -10 -9 -9 -6 -6 -------- Run | Yrd Mat Min Sub Rec Scr Fac Ext Hostile Shots Fired 805 | . 37 . 167 8 . 253 340 Missed 254 | . 12 . 63 2 . 55 122 Hits 551 | . 25 . 104 6 . 198 218 Melee 15 | . . . . . . 10 5 Projectile 536 | . 25 . 104 6 . 188 213 Critical Strikes 11 | . . . . . . 8 3 Damage Taken 6750 | . 229 . 1044 93 . 3397 1987 Core 1061 | . 28 . 129 46 . 545 313 Absorbed by Shields . | . . . . . . . . Redirected to Shielding 25 | . . . 25 . . . . Ignored by Resistances 108 | . . . . . . 26 82 Core Remaining (%) 59 | 100 . . . . 18 . . Volleys Fired 245 | 9 48 . 47 14 . 82 45 Largest 3 | 2 2 . 2 2 . 3 3 Hottest 218 | 60 100 . 60 40 . 218 150 Shots Fired 481 | 18 95 . 77 28 . 177 86 Gun 388 | 18 94 . 6 28 . 174 68 Cannon 57 | . . . 57 . . . . Launcher 34 | . . . 14 . . 2 18 Special 2 | . 1 . . . . 1 . Kinetic 290 | 9 47 . 63 28 . 106 37 Thermal 112 | 9 48 . . . . 55 . Explosive 34 | . . . 14 . . 2 18 Electromagnetic 44 | . . . . . . 13 31 Robot Hit Streak 14 | 3 14 . 11 10 . 14 9 Robot Miss Streak 7 | 3 4 . 7 2 . 4 3 Penetration Max 1 | . . . . . . . 1 Secondary Targets 6 | . 2 . . . . 4 . Max Gunslinging Chain 1 | . 1 . . . . 1 . Shots Hit Robots 334 | 11 59 . 46 25 . 131 62 Core Hits 154 | 5 28 . 24 12 . 46 39 Critical Kills 1 | . . . . . . . 1 Critical Parts Destroyed 4 | . 1 . . 2 . 1 . Critical Strikes 11 | . 1 . 2 2 . 2 4 Burn 1 | . . . . . . 1 . Destroy 4 | . 1 . . 1 . 1 1 Blast 2 | . . . 2 . . . . Smash 1 | . . . . 1 . . . Sever 3 | . . . . . . . 3 Melee Attacks 79 | . . . 42 7 . 11 19 Impact 49 | . . . 42 7 . . . Slashing 19 | . . . . . . 11 8 Piercing . | . . . . . . . . Sneak Attacks 19 | . . . 1 5 . 1 12 Combat Hostiles . | . . . . . . . . Follow-up Attacks . | . . . . . . . . Damage Inflicted 6721 | 113 592 . 884 550 . 2379 2203 Guns 3988 | 113 592 . 19 172 . 2302 790 Cannons 648 | . . . 648 . . . . Explosions 1345 | . . . 201 . . . 1144 Melee 724 | . . . . 378 . 77 269 Ramming 16 | . . . 16 . . . . Kinetic 3026 | 68 269 . 667 172 . 1374 476 Thermal 1427 | 45 323 . . . . 804 255 Explosive 1090 | . . . 201 . . . 889 Electromagnetic 438 | . . . . . . 124 314 Impact 378 | . . . . 378 . . . Slashing 346 | . . . . . . 77 269 Piercing . | . . . . . . . . Highest Corruption 7 | . 1 1 1 1 . 2 7 Average Corruption 1 | . 1 1 1 1 . 2 5 Corruption Purged . | . . . . . . . . Corruption Blocked . | . . . . . . . . Effects 53 | . 8 . 16 6 . 5 18 Message Errors 11 | . 3 . 3 1 . 1 3 Matter Fused 10 | . 2 . 4 1 . 2 1 Heat Flow Errors 9 | . 1 . 4 . . . 4 Energy Discharges 3 | . 1 . . . . 1 1 Parts Fused 2 | . . . 2 . . . . Data Loss (minor) 7 | . 1 . 1 2 . . 3 Data Loss (major) 1 | . . . . 1 . . . Misfires 3 | . . . . . . 1 2 Alerts 5 | . . . 2 1 . . 2 Weapon Failures 2 | . . . . . . . 2 Overload Shots . | . . . . . . . . Overflow Damage 277 | . . . . 165 . 47 65 Projectiles . | . . . . . . . . Explosions . | . . . . . . . . Melee 277 | . . . . 165 . 47 65 Knockbacks 9 | . . . 7 2 . . . Impact 3 | . . . 1 2 . . . Kinetic 6 | . . . 6 . . . . Secondary . | . . . . . . . . Self-Inflicted Damage 20 | . . . 11 . . 9 . Shots 2 | . . . 1 . . 1 . Rammed 2 | . . . 2 . . . . Targets Rammed 2 | . . . 2 . . . . Kicked . | . . . . . . . . Crushed . | . . . . . . . . Highest Temperature 355 | 40 267 . 257 24 . 355 236 Average Temperature 81 | 20 31 . 107 9 . 126 65 Received Heat Transfer 2124 | . 66 . 369 36 . 1134 519 Effects 5 | . . . . . . 5 . Energy Bleed 2 | . . . . . . 2 . Interference 3 | . . . . . . 3 . Siege Activations . | . . . . . . . . Martial Activations . | . . . . . . . . Shielding Activations . | . . . . . . . . Robots Disrupted . | . . . . . . . . Combat Hostiles . | . . . . . . . . Robots Corrupted 1 | . . . . 1 . . . Combat Hostiles . | . . . . . . . . Parts Fried 5 | . . . . 5 . . . Impact Corruptions 4 | . . . . 4 . . . Robots Melted 1 | . . . . . . 1 . Combat Hostiles 1 | . . . . . . 1 . Parts Melted 2 | . . . . . . 2 . Heat Transferred 2809 | 100 750 . . . . 1659 300 Parts Sabotaged . | . . . . . . . . Parts Stolen . | . . . . . . . . Parts Stripped . | . . . . . . . . Power Chain Reactions 1 | . . . . . . . 1 Alert | -11 -10 -10 -10 -9 -9 -6 -6 ------- Run | Yrd Mat Min Sub Rec Scr Fac Ext Maximum Alert Level . | . . . . . . . . Low Security (%) 100 | 100 100 100 . 100 . 100 100 Level 1 . | . . . . . . . . Level 2 . | . . . . . . . . Level 3 . | . . . . . . . . Level 4 . | . . . . . . . . Level 5 . | . . . . . . . . High Security . | . . . . . . . . Max Security . | . . . . . . . . Peak Influence 123 | 5 97 . . 68 . 94 123 Initial 56 | . . . . 56 . . 32 Average 26 | 1 24 . . 14 . 22 60 Influence Increases 1691 | 10 242 . 260 122 . 427 630 Destroy 0b10 Robot/C 980 | . 160 . 140 20 . 260 400 Destroy 0b10 Robot/NC 115 | 10 35 . . 35 . 20 15 Destroy Leader 130 | . 28 . . . . 50 52 Allied During Kill 43 | . . . . . . . 43 Successful Hack 92 | . 18 . . 50 . 18 6 Disable Machine 105 | . . . . 15 . 60 30 Destroy Structure 91 | . 1 . . 2 . 19 69 Lose Combat Pursuer 135 | . . . 120 . . . 15 Influence Decreases 1656 | 10 242 . 142 240 . 360 662 Entered New Map 97 | . . . . 62 . . 35 Time Decay 1090 | 10 242 . 102 178 . 210 348 Lost Part 352 | . . . 40 . . 150 162 Lost Ally 117 | . . . . . . . 117 Squads Dispatched 11 | . . 1 . . . 7 3 Investigation 5 | . . 1 . . . 2 2 Extermination 4 | . . . . . . 4 . Reinforcement 2 | . . . . . . 1 1 Assault . | . . . . . . . . Garrison . | . . . . . . . . Intercept . | . . . . . . . . Searches Triggered . | . . . . . . . . Construction Impeded . | . . . . . . . . Haulers Reinforced . | . . . . . . . . Active Scanning Responses . | . . . . . . . . Cargo Convoy Interrupts . | . . . . . . . . Stealth | -11 -10 -10 -10 -9 -9 -6 -6 --------- Run | Yrd Mat Min Sub Rec Scr Fac Ext Distress Signals 2 | . 2 . . . . . . Communications Jammed . | . . . . . . . . Distress Signals . | . . . . . . . . Times Spotted 82 | . 19 . 17 1 . 17 28 Peak Tracking Total 6 | . 5 . 6 1 . 4 5 Tactical Retreats 5 | . . . 4 . . . 1 Traps | -11 -10 -10 -10 -9 -9 -6 -6 ------- Run | Yrd Mat Min Sub Rec Scr Fac Ext Traps Triggered 5 | . 1 . . . . 2 2 Indirectly . | . . . . . . . . Trap Hack Attempts . | . . . . . . . . Triggered . | . . . . . . . . Disarmed . | . . . . . . . . Reprogrammed . | . . . . . . . . Reused . | . . . . . . . . Traps Extracted . | . . . . . . . . Installed . | . . . . . . . . Triggered . | . . . . . . . . Machines | -11 -10 -10 -10 -9 -9 -6 -6 ---------- Run | Yrd Mat Min Sub Rec Scr Fac Ext Machines Disabled 11 | . . . 4 1 . 4 2 Max in Single Turn 3 | . . . 3 1 . 1 . Machines Repaired . | . . . . . . . . Machines Dismantled . | . . . . . . . . Machines Sabotaged . | . . . . . . . . Overloaded Fab Kills . | . . . . . . . . Hacking | -11 -10 -10 -10 -9 -9 -6 -6 --------- Run | Yrd Mat Min Sub Rec Scr Fac Ext Machines Accessed 41 | . 5 1 2 11 4 10 8 Terminals 22 | . 5 . . 6 . 5 6 Fabricators 2 | . . . . . . 2 . Repair Stations . | . . . . . . . . Recycling Units 8 | . . . . 5 . 1 2 Scanalyzers 1 | . . . . . . 1 . Garrison Access 1 | . . . . . . 1 . Total Hacks 117 | . 14 1 13 23 26 23 17 Successful 88 | . 8 1 13 16 26 13 11 Failed 29 | . 6 . . 7 . 10 6 Catastrophic 2 | . . . . . . 1 1 Database Lockouts . | . . . . . . . . Manual 44 | . 10 . . 16 . 10 8 Terminals 59 | . 14 . . 18 . 12 15 Fabricators 2 | . . . . . . 2 . Repair Stations . | . . . . . . . . Recycling Units 10 | . . . . 5 . 3 2 Scanalyzers 4 | . . . . . . 4 . Garrison Access 2 | . . . . . . 2 . Terminal Hacks 58 | . 2 1 13 5 26 5 6 Record 37 | . . . 12 . 25 . . Robot Analysis 2 | . 1 . . 1 . . . Prototype ID Bank 2 | . . . . 1 . 1 . Open Door 6 | . . 1 . . . 1 4 Terminal Index 4 | . 1 . . 1 . 1 1 Alert Level 1 | . . . . . . . 1 Locate Traps 2 | . . . . . . 2 . Zone Layout 2 | . . . . 2 . . . Proto ID Catalog 2 | . . . 1 . 1 . . Fabricator Hacks 1 | . . . . . . 1 . Network Status 1 | . . . . . . 1 . Repair Station Hacks . | . . . . . . . . Recycling Unit Hacks 7 | . . . . 5 . 2 . Report Inventory 6 | . . . . 5 . 1 . Retrieve Components 1 | . . . . . . 1 . Scanalyzer 1 | . . . . . . 1 . Insert Component 1 | . . . . . . 1 . Garrison Access Hacks . | . . . . . . . . Unauthorized Hacks 21 | . 6 . . 6 . 4 5 Terminals 17 | . 6 . . 6 . 2 3 Botnet 6 | . . . . 4 . 1 1 Operators 3 | . 1 . . 1 . . 1 Skim 8 | . 5 . . 1 . 1 1 Fabricators 1 | . . . . . . 1 . Liberate 1 | . . . . . . 1 . Repair Stations . | . . . . . . . . Recycling Units 3 | . . . . . . 1 2 Fedlink 2 | . . . . . . 1 1 Scrapoids 1 | . . . . . . . 1 Scanalyzers . | . . . . . . . . Garrison Access . | . . . . . . . . Data Cores Recovered 1 | . . . . . . . 1 Used . | . . . . . . . . Hacking Detections 20 | . 3 . . 7 . 6 4 Full Trace Events 1 | . . . . . . 1 . Feedback Events . | . . . . . . . . Feedback Blocked . | . . . . . . . . Robot Schematics Acquired . | . . . . . . . . Robots Built . | . . . . . . . . Authchips . | . . . . . . . . Time . | . . . . . . . . Total Robot Build Rating . | . . . . . . . . Part Schematics Acquired . | . . . . . . . . Parts Built . | . . . . . . . . Authchips . | . . . . . . . . Time . | . . . . . . . . Total Part Build Rating . | . . . . . . . . Parts Repaired . | . . . . . . . . Time . | . . . . . . . . Parts Recycled . | . . . . . . . . Recycled Matter . | . . . . . . . . Retrieved Matter . | . . . . . . . . Retrieved Components 3 | . . . . . . 3 . Parts Scanalyzed 1 | . . . . . . 1 . Part Schematics Acquired . | . . . . . . . . Parts Damaged . | . . . . . . . . Bothacking | -11 -10 -10 -10 -9 -9 -6 -6 ------------ Run | Yrd Mat Min Sub Rec Scr Fac Ext Used RIF Installer . | . . . . . . . . Robots Hacked . | . . . . . . . . Non-combat . | . . . . . . . . Combat . | . . . . . . . . Robot Hacks Applied . | . . . . . . . . Relay Couplers Released . | . . . . . . . . Fabnet Peak Effective % . | . . . . . . . . Robots Rewired 6 | . . . . . . . 6 Allies Hacked . | . . . . . . . . Hacks Repelled . | . . . . . . . . Allies | -11 -10 -10 -10 -9 -9 -6 -6 -------- Run | Yrd Mat Min Sub Rec Scr Fac Ext Total Allies 12 | . . . . . . . 12 Largest Group 4 | . . . . . . . 4 Highest-Rated Group 126 | . . . . . . . 126 Highest-Rated Ally 39 | . . . . . . . 39 Total Orders . | . . . . . . . . Ally Attacks 81 | . . . . . . . 81 Total Damage 1260 | . . . . . . . 1260 Kills 10 | . . . . . . . 10 Allies Corrupted . | . . . . . . . . Allies Melted . | . . . . . . . . Intel | -11 -10 -10 -10 -9 -9 -6 -6 ------- Run | Yrd Mat Min Sub Rec Scr Fac Ext Active Infowar (turns) 3107 | 10 250 253 906 . . 959 729 Sensors 1562 | . . 253 906 . . 403 . Terrain 933 | . . . . . . 205 728 Structural 78 | . . . . . . . 78 Seismic 1007 | 10 250 . . . . 259 488 Jamming 347 | . . . . . . 347 . Robot Analysis Total 2 | . 1 . . 1 . . . Derelict Logs Recovered 4 | . . 1 1 . 2 . . Drone Launches . | . . . . . . . . Drone Recoveries . | . . . . . . . . Exploration | -11 -10 -10 -10 -9 -9 -6 -6 ------------- Run | Yrd Mat Min Sub Rec Scr Fac Ext Turns Passed 9636 | 127 963 412 1869 707 2609 2040 909 Spaces Moved 4892 | 55 411 231 1034 471 1326 872 492 Core 93 | 1 . . . . . . 92 Treads 1784 | 54 411 231 726 . . 309 53 Legs 2475 | . . . 308 471 1326 176 194 Wheels 540 | . . . . . . 387 153 Hover . | . . . . . . . . Flight . | . . . . . . . . Fastest Speed 50 | 50 160 160 130 130 130 125 50 Average Speed 165 | 158 160 160 153 134 194 181 123 Slowest Speed 340 | 160 160 160 240 200 200 340 330 Overloaded Moves . | . . . . . . . . Propulsion Burnouts . | . . . . . . . . Robots Hopped . | . . . . . . . . Potential Cave-ins 8 | . . . . . . . 8 Cave-ins Triggered . | . . . . . . . . Exploration Rate (%) 50 | 5 63 54 41 94 84 22 38 Regions Visited 7 Branch Regions 5 Pre-discovered Areas 2 | . . 1 . . . . 1 Known Exits Taken 3 | . 1 . 1 . . 1 . Unknown Exits Taken 4 | 1 . 1 . 1 1 . . Scrap Searched 12 | . . 2 . . 10 . . Spaces Dug 62 | . 1 . 30 2 . 7 22 Terrain Destroyed 261 | . 1 . 90 2 . 21 147 Melee 31 | . . . 22 2 . 7 . Projectile 2 | . 1 . . . . . 1 AOE 228 | . . . 68 . . 14 146 Terrain Rammed . | . . . . . . . . Walls Destroyed . | . . . . . . . . Machines Disabled . | . . . . . . . . Actions | -11 -10 -10 -10 -9 -9 -6 -6 --------- Run | Yrd Mat Min Sub Rec Scr Fac Ext Total 5873 | 75 628 276 1164 512 1358 1171 689 Wait 318 | . 144 33 4 9 . 106 22 Move 4885 | 54 410 230 1033 470 1325 871 492 Hop . | . . . . . . . . Pick Up 95 | 4 14 6 6 2 13 25 25 Fast Attach 51 | 7 2 . 1 2 1 20 18 Attach 34 | . . . 6 . . 18 10 Detach 11 | . . . 1 . 1 5 4 Swap 76 | 1 5 1 21 4 6 17 21 Drop 58 | . 5 6 1 4 12 16 14 Fire 245 | 9 48 . 47 14 . 82 45 Melee 79 | . . . 42 7 . 11 19 Ram . | . . . . . . . . Kick . | . . . . . . . . Crush 2 | . . . 2 . . . . Escape Stasis 13 | . . . . . . . 13 Rewire 6 | . . . . . . . 6 Trap . | . . . . . . . . Miscellaneous . | . . . . . . . . Route ------- -11/Scrapyard -10/Materials (discovered 6 exits: *Mat x3 / *Min x2 / *Sub) -10/Mines -10/Subcaves (discovered 2 exits: Mat / *Rec) -9/Recycling (discovered 2 exits: Fac / *Scr) -9/Scraptown (discovered 2 exits: *Fac x2) -6/Factory (discovered 4 exits: [*Fac] / [*Low x2] / *Ext) -6/Extension History --------- Turn | Location | Event 46 | -11/Scrapyard | Discovered new exit (range 16) 128 | -11/Scrapyard | Entered Materials 262 | -10/Materials | Discovered new exit (range 16) 300 | -10/Materials | Build established: Mutant 616 | -10/Materials | Discovered new exit (range 14) 617 | -10/Materials | Identified exit to Mines 694 | -10/Materials | Learned Storage interactive machine intel 763 | -10/Materials | Learned Storage garrison access intel 763 | -10/Materials | Discovered new exit (range 15) 823 | -10/Materials | Identified exit to Materials 873 | -10/Materials | Learned location of 1 exit from Recycling 961 | -10/Materials | Learned location of 1 exit from Materials 1085 | -10/Materials | Learned location of 2 exits from Subcaves 1091 | -10/Materials | Entered Mines 1104 | -10/Mines | Met a Derelict shopkeep closing up shop 1263 | -10/Mines | YI-UF0 nonchalantly dropped a Grenade Launcher on the ground 1325 | -10/Mines | Learned location of Zion (-6) 1376 | -10/Mines | Discovered new exit (range 5) 1503 | -10/Mines | Entered Subcaves 1504 | -10/Subcaves | Identified exit to Materials 1504 | -10/Subcaves | Identified exit to Recycling 1507 | -10/Subcaves | Learned Materials interactive machine intel 1515 | -10/Subcaves | Shifting Twisted Machinery released Sub. Beam Cannon 1552 | -10/Subcaves | Shifting Twisted Machinery released Sub. Monowheel 1819 | -10/Subcaves | A swath of the cavern ceiling suddenly collapsed 2005 | -10/Subcaves | Visited 4L-MR0's lab 2023 | -10/Subcaves | Found Gun Armor 2523 | -10/Subcaves | Visited Clippyterm 2528 | -10/Subcaves | Learned Factory emergency access door positions 2832 | -10/Subcaves | Lost 3 parts (1p1n1w) 3195 | -10/Subcaves | Core integrity fell below 50% 3372 | -10/Subcaves | Entered Recycling 3373 | -9/Recycling | Identified exit to Factory 3885 | -9/Recycling | Core integrity fell below 20% 4047 | -9/Recycling | Scanned before Scraplab entrance 4066 | -9/Recycling | Entered Scraplab 4077 | -9/Recycling | Discovered new exit (range 3) 4079 | -9/Recycling | Entered Scraptown 4079 | -9/Scraptown | System corruption cleaned by C-Scrubber 4164 | -9/Scraptown | Heard Great Nut preacher, LISTEN AND RECITE! 4558 | -9/Scraptown | Visited Bundlers 4676 | -9/Scraptown | Visited Shadow of the Wyrm 4728 | -9/Scraptown | Visited The Evicted 4812 | -9/Scraptown | Visited Cyclists 4832 | -9/Scraptown | Visited Symbiants 4900 | -9/Scraptown | Scanned Subdweller tech in exchange for log data 4904 | -9/Scraptown | Learned Research garrison access intel 4906 | -9/Scraptown | Learned location of 1 exit from Factory 4999 | -9/Scraptown | Discovered new exit (range 13) 5190 | -9/Scraptown | Visited CPS Storage 5244 | -9/Scraptown | Visited Awakened 5516 | -9/Scraptown | Visited UFD Registry 5516 | -9/Scraptown | Registered with UFD as "Maceblaster" 5558 | -9/Scraptown | Visited Scrap Suit Storage 5566 | -9/Scraptown | Found Scrap Suit 5629 | -9/Scraptown | Visited DA-N13 Charitable Foundation 5637 | -9/Scraptown | Found DCF Scrap (30 items) 5705 | -9/Scraptown | Visited Science Guys 5785 | -9/Scraptown | Visited LU-1G1's Boring Crew 5817 | -9/Scraptown | Visited Derelict Rescue Squad 5843 | -9/Scraptown | Visited Science Testing Area 5869 | -9/Scraptown | Visited Modified Component R&D 5925 | -9/Scraptown | Visited A0-MCA Data Center 5937 | -9/Scraptown | Given a B rating by A0-MCA 5981 | -9/Scraptown | Visited Chapter 10 6013 | -9/Scraptown | Visited Cartography Club 6047 | -9/Scraptown | Found Surveybot 17 Chip 6544 | -9/Scraptown | Met Optimus 6544 | -9/Scraptown | Accepted into 0bPrime 6684 | -9/Scraptown | Discovered new exit (range 3) 6688 | -9/Scraptown | Entered Factory 6688 | -6/Factory | Evolved 8 slots: Power x1, Propulsion x2, Utility x4, Weapon x1 6689 | -6/Factory | Identified exit to Extension 6982 | -6/Factory | Build established: Derelict-Tank 7087 | -6/Factory | Lost 5 parts (1p2n2u) 7345 | -6/Factory | Core integrity fell below 50% 7407 | -6/Factory | Lost 10 parts (5n1u4w) 7696 | -6/Factory | Build established: Hacker-Gunner 8085 | -6/Factory | Discovered new exit (range 6) 8093 | -6/Factory | Discovered new exit (range 15) 8274 | -6/Factory | Lost 5 parts (1p2n2w) 8433 | -6/Factory | Loaded intel: 8 recycling unit locations 8480 | -6/Factory | Discovered new exit (range 14) 8728 | -6/Factory | Entered Extension 8765 | -6/Extension | Rescued a captive Derelict 8775 | -6/Extension | Rescued a captive Derelict 8784 | -6/Extension | Rescued a captive Derelict 9035 | -6/Extension | Loaded intel: 2 recycling unit locations 9035 | -6/Extension | Learned location of Protoforge (-2) 9092 | -6/Extension | Core integrity fell below 20% 9112 | -6/Extension | Rescued a captive Derelict 9113 | -6/Extension | Rescued a captive Derelict 9121 | -6/Extension | Lost 14 parts (2p5n4u3w) 9453 | -6/Extension | Rescued a captive Derelict 9545 | -6/Extension | Lost 4 parts (2p2u) 9637 | -6/Extension | Lost 4 allies 9637 | -6/Extension | Destroyed by H-66 Slayer with Gauss Rifle Last Messages --------------- 09617_ Slug penetrates W-25 Informer. 09619_ U-05 Engineer builds a Door. 09620_ Acquired 58 matter. 09621_ Acquired 6 matter. 09623_ U-05 Engineer builds a Wall. 09624_ Acquired 10 matter. 09624_ Sneak attack on M6-D2N(h). 09624_ Attempting to rewire M6-D2N(h). 09626_ Sneak attack on M6-D2N(h). 09626_ Attempting to rewire M6-D2N(h). 09627_ Sneak attack on M6-D2N(h). 09627_ M6-D2N(h) rewired. 09629_ Sneak attack on VN-XDZ(g). 09629_ VN-XDZ(g) rewired. 09633_ Dropped Carbon-fiber Leg. 09635_ Slug penetrates VN-XDZ(g). 09635_ Acquired 10 matter. 09636_ H-66 Slayer suffers critical hit (Destroy). 09636_ Destroyed Flexi-carbon Leg. 09637_ Penetrated by Slug. Map ----- +----------------------------------------------------+ | | | | | | | | | | | | | | | | | | | | | | | | | | | | | | | | | | | | | | | | | | | ########################### ############?????????? | | ########################## #############?????????? | | ############# ##########################?????????? | | #################### !=#%!/ ##########?????????? | | ########## u%];=@// ##########?????????? | | ########## #####!%!#%=/g /h h ?????????? | | ########## ######*##=g h ##### ####?????????? | | ## ######+##= ##### #####????????? | | ## ^ # ## ##### ####?????????? | | # [ =# ############# ####????o????? | | # =! # * ############# ##?#?????????? | | ## ^ =*=+%= ############# ###??????????? | | ## #/ *############# ##???????????? | | ## ############# = ############# ?##??????????? | | ## ####################### ??????????? | | # ####################### ####### ##????????????? | | # ####################### T###### T?????????????? | | ## #######################"#######"?#????????????? | | ## ####################### #######?#?????????????? | | ## ################################??????????????? | | ## #############################?????????????????? | | ## #############################?????????????????? | | ## ##########################????????????????????? | | ## #########################?????????????????????? | | ## #######################???????????????????????? | | ## ##################????????????????????????? | | ## #T##################??????????????????????????? | | ## #################?????????????????????????????? | | ## #################?????????????????????????????? | +----------------------------------------------------+ Best States ------------- Heat Dissipation 51 Energy Generation 31 Energy Capacity 265 Matter Stores 300 Matter Capacity 300 Sight Range 16 Robot Scan Range 16 Terrain Scan Range 16 Terrain Scan Density 1210 Jamming Range 12 Armor Coverage 225 Resistance: KI 20 Core Shielding 20 Phase Shifting 5 Evasion (%) 60 Recoil Reduction 4 Offensive Hacking 12 Defensive Hacking 10 Item Schematics ----------------- None Robot Schematics ------------------ None Fabricated ------------ Nothing Repaired ---------- Nothing Alien Tech Used ----------------- None Achievements -------------- None Challenges ------------ None Game ------ Seed LargeRainbowSheargun Manual? 0 Play Time 01:40:50 Cumulative 222.9 hours Start 2025.07.20 @ 08:02:54 End 2025.07.20 @ 10:04:07 Sessions 1 Manual Loads 0 Difficulty Rogue Special Mode None Game No. 111 Rogue 90 Adventurer 21 Explorer 0 Win Type - Total 10 Types 7/0/2/1/0/0/0/0/0/0 Lore% 46 Gallery% 63 Achievement% 59 Wizard Run 0 Options --------- Layout 1 ASCII 0 Keyboard 0 Movement Mouse Keybinds 0 Fullscreen 2 Font 32/SmallcapsGlow Map View 77x35 Zoom Use 0% Tactical HUD 1 Map Filters NONE Filters NONE Steam 1 RUN: 1cbf75f5-78bf-48e1-b1a2-d92088fef54b